{"text_format":"2","workbook":"xlsx","n_sheets":1,"sheets":["Munka1"],"not_rendered":{"charts":0,"images":0,"macros":0,"external_links":0,"defined_names":0,"comments":0,"pivot_tables":0},"unopened":[],"bounds":{"document_bytes":16777216,"sheet_cells":100000,"run_cost":"one","rows_first":2000,"rows_last":500,"rows_between":2000,"halvings":0,"cell_chars":16384,"cell_head_chars":4096},"cells_cut":0,"cells_raw":0,"read":"whole","date_system":"1900"}

{"sheet":"Munka1","index":0,"n_rows":18,"n_cols":7,"rows_kept":18,"cut":false,"hidden":false,"merged":[]}
["ESZKÖZ MEGNEVEZÉSE","MÉRET","DB. SZÁM","NETTÓ EGYSÉGÁR","NETTÓ ÖSSZ.","ÁFA","BRUTTÓ ÖSSZ."]
["Qmed Standard SMRnszivacshenger","45x15 cm",4,null,{"$f":"D2*C2","v":0},1.27,{"$f":"E2*F2","v":0}]
["SMRmRAd roller masszázs labda (zöld)","-",2,null,{"$f":"D3*C3","v":0},1.27,{"$f":"E3*F3","v":0}]
["Qmed dinamikus ülőpárna kör alakú pumpával","-",2,null,0,1.27,0]
["Qmed soft ball 25-30 pilates labda","-",4,null,0,1.27,0]
["Thera-Band erősítő gumiszalag (sárga)","150 cm",4,null,0,1.27,0]
["Thera-Band erősítő gumiszalag (piros)","150 cm",6,null,0,1.27,0]
["Thera-Band erősítő gumiszalag (zöld)","150 cm",6,null,0,1.27,0]
["Thera-Band erősítő gumiszalag (kék)","150 cm",4,null,0,1.27,0]
["Safe Leaser 150-es","-",1,null,0,1.27,0]
["Rollátor (4 kerekű) GM-4260-as","-",2,null,0,1.27,0]
["Koordinációs létra","4 m",2,null,0,1.27,0]
["Conveen 5050 rögzítőpánt lábzsákhoz","-",100,null,0,1.27,0]
["Sild Easy Betegcsúsztató lepedő füllel","195x70 cm",1,null,0,1.27,0]
["Antidecubitus könyökvédő uni","-",2,null,0,1.27,0]
["Qmed térd és lábtámasztó párna","-",4,null,0,1.27,0]
["Betegellenőrző monitor CMS-hez állvány","-",1,null,0,1.27,0]
[null,null,null,"NETTÓ VÉGÖSSZEG",{"$f":"SUM(E2:E17)","v":0},"BRUTTÓ VÉGÖSSZEG",{"$f":"SUM(G2:G17)","v":0}]